bitfinex/quotes_SOLUSD_20220116
["timestamp","ask_amount","ask_price","bid_price","bid_amount"]
[1642306447356,7.79981727,147.42,147.36,0.02109987]
[1642306447555,13.46781727,147.42,147.36,0.02109987]
[1642306448158,5.668,147.42,147.36,0.02109987]
[1642306448456,1.92807329,147.42,147.36,0.28109987]
[1642306448656,1.92807329,147.42,147.36,10.12109987]
[1642306448956,1.92807329,147.42,147.36,16.12109987]
[1642306449157,1.92807329,147.42,147.37,49.09612872]
[1642306449356,1.92807329,147.42,147.37,65.18612872]
[1642306449560,21.47951853,147.43,147.37,65.18612872]
[1642306449758,21.47951853,147.43,147.38,0.26]
[1642306450158,24.7309,147.46,147.38,0.26]
[1642306450759,24.7309,147.46,147.39,0.02113903]
[1642306451159,29.50247942,147.45,147.39,0.02113903]
[1642306455467,0.07962902,147.48,147.39,0.02113903]
[1642306455867,0.07962902,147.48,147.37,16.37109987]
[1642306456470,23.38629038,147.48,147.37,16.37109987]
[1642306456667,23.63629038,147.48,147.37,16.37109987]
[1642306460897,23.63629038,147.48,147.39,0.02113903]
[1642306462297,23.38629038,147.48,147.39,0.02113903]
[1642306463098,23.2572,147.47,147.39,0.02113903]
[1642306465902,23.2572,147.47,147.37,16.37109987]
[1642306467802,23.2572,147.47,147.37,16.11109987]
[1642306468003,23.5072,147.47,147.37,16.11109987]
[1642306470808,23.5072,147.47,147.39,0.02113903]
[1642306471406,23.2572,147.47,147.39,0.02113903]
[1642306475913,23.2572,147.47,147.38,0.28109987]
[1642306479217,23.2572,147.47,147.38,2.16044233]
[1642306479417,23.2572,147.47,147.38,8.41044233]
[1642306480821,23.2572,147.47,147.4,0.02111945]
[1642306483223,23.5072,147.47,147.4,0.02111945]
[1642306484351,23.2572,147.47,147.4,0.02111945]
[1642306485755,23.2572,147.47,147.38,8.41042275]
[1642306485955,23.2572,147.47,147.38,18.25042275]
[1642306486156,23.2572,147.47,147.39,1.87934246]
[1642306486358,23.2572,147.47,147.4,0.26]
[1642306490759,23.2572,147.47,147.42,0.02108029]
[1642306495072,23.5072,147.47,147.42,0.02108029]
[1642306495500,23.5072,147.47,147.42,0.00108029]
[1642306495670,29.5072,147.47,147.42,0.00108029]
[1642306495871,110.0,147.45,147.36,3.8814387]
[1642306496072,9.84,147.45,147.33,3.8814387]
[1642306496371,24.6511,147.44,147.33,9.8814387]
[1642306496671,6.55079523,147.43,147.34,37.32799725]
[1642306496873,6.80079523,147.43,147.34,37.32799725]
[1642306498270,6.80079523,147.43,147.34,37.57799725]
[1642306498473,6.55079523,147.43,147.35,0.26]
[1642306499271,6.80079523,147.43,147.35,0.26]
[1642306500873,24.6511,147.44,147.35,0.26]
[1642306501273,24.6511,147.44,147.35,1.57618316]
[1642306501474,24.6511,147.44,147.35,7.82618316]
[1642306501976,21.3258839,147.43,147.35,7.82618316]
[1642306502475,24.6511,147.44,147.35,7.82618316]
[1642306503475,24.29261425,147.43,147.35,7.82618316]
[1642306504077,24.3649,147.46,147.35,75.86618316]
[1642306504279,24.3649,147.46,147.36,9.84]
[1642306504477,24.3649,147.46,147.36,78.13]
[1642306504676,24.3649,147.46,147.37,1.57618316]
[1642306504876,24.3649,147.46,147.37,7.82618316]
[1642306505076,28.0902108,147.45,147.38,1.31618316]
[1642306505277,28.0902108,147.45,147.39,45.74423403]
[1642306505576,28.0902108,147.45,147.39,46.25423403]
[1642306505776,28.0902108,147.45,147.39,52.25423403]
[1642306508381,28.0902108,147.45,147.39,51.99423403]
[1642306509282,13.6841036,147.42,147.39,51.99423403]
[1642306509485,13.6841036,147.42,147.4,3.03219997]
[1642306509684,16.71630357,147.42,147.4,3.03219997]
[1642306509889,16.71630357,147.42,147.4,3.28219997]
[1642306511221,13.6841036,147.42,147.4,3.28219997]
[1642306511426,13.6841036,147.42,147.4,3.03219997]
[1642306512923,13.6841036,147.42,147.4,3.28219997]
[1642306514324,51.7887108,147.45,147.4,3.28219997]
[1642306514725,27.3682072,147.42,147.4,3.28219997]
[1642306516527,27.3682072,147.42,147.41,0.26]
[1642306522937,27.3682072,147.42,147.4,19.12219997]
[1642306523136,13.6841036,147.42,147.4,19.12219997]
[1642306523336,13.6841036,147.41,147.4,19.12219997]
[1642306523736,13.6841036,147.41,147.4,19.38219997]
[1642306523936,0.07962902,147.48,147.4,19.38219997]
[1642306524139,0.07962902,147.48,147.41,23.1387]
[1642306524340,0.07962902,147.48,147.42,9.84]
[1642306524537,0.07962902,147.48,147.43,29.96051192]
[1642306524737,0.07962902,147.48,147.44,9.84]
[1642306524939,0.07962902,147.48,147.45,0.26]
[1642306525138,0.07962902,147.48,147.46,3.03219997]
[1642306525340,0.07962902,147.48,147.47,0.26]
[1642306525838,0.07962902,147.48,147.47,41.90812708]
[1642306526237,0.07962902,147.48,147.47,48.15812708]
[1642306529140,0.07962902,147.48,147.47,57.99812708]
[1642306532141,0.34056062,147.53,147.47,57.99812708]
[1642306533246,0.34056062,147.53,147.48,68.04]
[1642306533542,0.34056062,147.53,147.5,36.01031273]
[1642306533742,0.34056062,147.53,147.51,3.03219997]
[1642306533942,0.34056062,147.53,147.51,3.54219997]
[1642306534342,0.34056062,147.53,147.51,3.28219997]
[1642306535848,0.34056062,147.53,147.52,0.26]
[1642306539981,0.34056062,147.53,147.51,3.28219997]
[1642306541081,0.34056062,147.53,147.51,9.28219997]
[1642306543490,0.34056062,147.53,147.52,0.26]
[1642306568549,0.34056062,147.53,147.52,68.3]
[1642306568748,24.4193,147.64,147.53,68.04]
[1642306568951,49.17,147.64,147.54,34.178]
[1642306569351,49.17,147.64,147.54,40.428]
[1642306569750,42.72420985,147.63,147.55,43.85862693]
[1642306569950,42.72420985,147.63,147.56,9.84]
[1642306570150,42.72420985,147.63,147.56,10.1]
[1642306570351,42.72420985,147.63,147.56,16.35]
[1642306570753,48.72420985,147.63,147.56,16.09]
[1642306571353,48.97420985,147.63,147.56,15.84]
[1642306571553,48.72420985,147.63,147.56,15.84]
[1642306572758,48.72420985,147.63,147.56,16.09]
[1642306572957,48.72420985,147.63,147.56,15.84]
[1642306573157,48.72420985,147.63,147.56,16.09]
[1642306573459,48.97420985,147.63,147.56,15.84]
[1642306574484,48.72420985,147.63,147.56,15.84]
[1642306574681,48.97420985,147.63,147.56,6.0]
[1642306574882,48.72420985,147.63,147.55,9.84]
[1642306575281,48.72420985,147.63,147.55,15.84]
[1642306575481,48.97420985,147.63,147.55,15.84]
[1642306576380,48.72420985,147.63,147.55,15.84]
[1642306576580,48.97420985,147.63,147.55,15.84]
[1642306578585,48.97420985,147.63,147.55,6.0]
[1642306578986,48.97420985,147.63,147.52,9.84]
[1642306579185,22.6392,147.62,147.52,16.09]
[1642306579386,28.8892,147.62,147.52,16.09]
[1642306581789,28.8892,147.62,147.53,0.26]
[1642306582188,28.8892,147.62,147.53,10.1]
[1642306582392,28.8892,147.62,147.53,16.35]
[1642306582791,28.8892,147.62,147.53,6.51]
[1642306582990,28.8892,147.62,147.53,0.51]
[1642306583189,28.8892,147.62,147.53,6.51]
[1642306583590,28.8892,147.62,147.53,0.51]
[1642306583790,28.8892,147.62,147.51,0.26]
[1642306583990,28.8892,147.62,147.51,78.14]
[1642306584390,28.8892,147.62,147.52,23.5449]
[1642306584591,28.8892,147.62,147.53,9.84]
[1642306584790,28.8892,147.62,147.53,10.1]
[1642306584993,28.8892,147.62,147.53,16.35]
[1642306585490,28.8892,147.62,147.53,46.38616906]
[1642306586292,28.6392,147.62,147.53,40.38616906]
[1642306586490,28.6392,147.62,147.53,46.38616906]
[1642306587092,28.6392,147.62,147.53,114.42616906]
[1642306587893,28.6392,147.62,147.53,46.38616906]
[1642306588694,28.6392,147.62,147.53,16.35]
[1642306588895,28.6392,147.62,147.53,84.39]
[1642306589595,28.8892,147.62,147.53,16.09]
[1642306589797,28.6392,147.62,147.53,16.09]
[1642306590696,6.0,147.62,147.53,16.09]
[1642306590898,48.72420985,147.63,147.53,16.09]
[1642306591097,6.0,147.62,147.53,15.84]
[1642306591297,48.97420985,147.63,147.53,15.84]
[1642306591498,0.25,147.62,147.53,15.84]
[1642306591899,24.2128,147.62,147.54,0.26]
[1642306592298,30.2128,147.62,147.54,0.26]
[1642306592702,30.2128,147.62,147.55,9.84]
[1642306592900,29.9628,147.62,147.55,16.09]
[1642306593700,30.2128,147.62,147.55,16.09]
[1642306593902,6.0,147.62,147.55,7.57138742]
[1642306594302,48.72420985,147.63,147.55,7.57138742]
[1642306594500,48.72420985,147.63,147.55,6.25]
[1642306594501,48.97420985,147.63,147.55,6.25]
[1642306594702,48.97420985,147.63,147.55,0.25]
[1642306594900,48.97420985,147.63,147.55,6.26]
[1642306595102,48.97420985,147.63,147.55,6.51]
[1642306595501,48.97420985,147.63,147.55,0.51]
[1642306595902,24.4754,147.62,147.55,0.51]
[1642306596102,24.4754,147.62,147.54,39.201]
[1642306596301,30.4754,147.62,147.54,16.09]
[1642306597302,24.7254,147.62,147.54,16.09]
[1642306597501,24.4754,147.62,147.54,16.09]
[1642306598703,24.4754,147.62,147.55,0.26]
[1642306601105,24.4754,147.62,147.54,30.277]
[1642306601304,24.4754,147.62,147.55,0.26]
[1642306601604,24.7254,147.62,147.54,30.277]
[1642306601808,24.4754,147.62,147.55,0.26]
[1642306602204,24.4754,147.62,147.54,30.277]
[1642306602406,24.4754,147.62,147.55,0.26]
[1642306604205,24.4754,147.62,147.54,30.277]
[1642306608040,24.4754,147.62,147.54,40.117]
[1642306608415,42.72420985,147.63,147.55,0.26]
[1642306608615,42.72420985,147.63,147.55,1.57924333]
[1642306608814,48.72420985,147.63,147.56,9.84]
[1642306609214,48.72420985,147.63,147.56,46.09820892]
[1642306609415,48.72420985,147.63,147.57,0.26]
[1642306610014,48.72420985,147.63,147.56,16.09]
[1642306611617,48.72420985,147.63,147.57,0.26]
[1642306612016,48.72420985,147.63,147.56,16.09]
[1642306612418,48.72420985,147.63,147.57,0.26]
[1642306612917,48.72420985,147.63,147.56,16.09]
[1642306613116,48.76420985,147.63,147.56,16.09]
[1642306618550,48.76420985,147.63,147.56,15.84]
[1642306619848,48.76420985,147.63,147.56,16.09]
[1642306622049,48.76420985,147.63,147.56,9.84]
[1642306622249,55.64220985,147.63,147.53,1.81402997]
[1642306622449,23.6082,147.62,147.54,0.25]
[1642306622950,29.8582,147.62,147.54,0.25]
[1642306623653,29.8582,147.62,147.52,8.06402997]
[1642306624055,23.6082,147.62,147.52,9.3832733]
[1642306624255,23.6082,147.62,147.53,0.26]
[1642306624455,23.6082,147.62,147.53,23.1098]
[1642306624653,23.6082,147.62,147.54,29.51020886]
[1642306624853,23.6082,147.62,147.54,29.76020886]
[1642306625255,23.8582,147.62,147.54,29.76020886]
[1642306625858,23.8582,147.62,147.54,35.76020886]
[1642306626057,23.8582,147.62,147.54,29.76020886]
[1642306626559,23.8582,147.62,147.55,0.26]
[1642306626958,23.8582,147.62,147.54,29.76020886]
[1642306627165,23.8582,147.62,147.54,35.76020886]
[1642306627166,23.6082,147.62,147.54,35.76020886]
[1642306627359,23.8582,147.62,147.54,0.25]
[1642306627758,23.8582,147.62,147.53,8.06402997]
[1642306627958,35.6842,147.62,147.53,2.06402997]
[1642306628159,35.6842,147.62,147.53,0.25]
[1642306628359,35.6842,147.62,147.52,50.88408979]
[1642306628760,23.8582,147.62,147.52,50.88408979]
[1642306628961,23.8582,147.62,147.52,58.20333312]
[1642306629163,25.53826067,147.62,147.53,0.26]
[1642306629365,31.78826067,147.62,147.53,0.26]
[1642306629562,25.53826067,147.62,147.53,24.5908]
[1642306629761,25.53826067,147.62,147.53,25.91004333]
[1642306629962,25.53826067,147.62,147.53,30.5808]
[1642306630163,23.6082,147.62,147.53,24.5808]
[1642306630765,29.6082,147.62,147.53,24.5808]
[1642306630964,23.6082,147.62,147.53,24.5808]
[1642306631168,23.6082,147.62,147.53,25.90004333]
[1642306631368,23.8582,147.62,147.53,25.90004333]
[1642306631766,23.8582,147.62,147.54,0.26]
[1642306635473,29.8582,147.62,147.54,0.26]
[1642306635673,23.8582,147.62,147.54,0.26]
[1642306636974,23.6082,147.62,147.54,0.26]
[1642306637378,23.8582,147.62,147.54,0.26]
[1642306637876,29.8582,147.62,147.54,0.26]
[1642306638776,23.8582,147.62,147.54,0.26]
[1642306638975,23.8582,147.62,147.53,31.90004333]
[1642306639377,29.6082,147.62,147.53,31.90004333]
[1642306639879,29.8582,147.62,147.53,31.90004333]
[1642306640380,29.8582,147.62,147.54,0.26]
[1642306642508,23.8582,147.62,147.53,31.90004333]
[1642306642706,23.8582,147.62,147.53,30.5808]
[1642306643406,29.8582,147.62,147.53,30.5808]
[1642306643614,25.78826067,147.62,147.53,30.5808]
[1642306645309,31.78826067,147.62,147.53,30.5808]
[1642306645708,25.78826067,147.62,147.53,30.5808]
[1642306646109,23.8582,147.62,147.53,30.5808]
[1642306647310,32.7932,147.62,147.53,6.25]
[1642306647618,38.7932,147.62,147.53,6.25]
[1642306647809,50.56326067,147.62,147.53,0.25]
[1642306648009,50.56326067,147.62,147.51,2.06402997]
[1642306648211,50.56326067,147.62,147.51,1.81402997]
[1642306649213,50.56326067,147.62,147.52,35.55971061]
[1642306650118,1.93006067,147.61,147.52,35.55971061]
[1642306650314,0.81735034,147.6,147.52,35.55971061]
[1642306650515,0.81735034,147.6,147.52,35.80971061]
[1642306651716,0.81735034,147.6,147.52,37.12895394]
[1642306652116,0.81735034,147.6,147.52,43.12895394]
[1642306652316,0.81735034,147.6,147.52,37.12895394]
[1642306655720,0.81735034,147.6,147.52,43.12895394]
[1642306655918,0.81735034,147.6,147.52,37.12895394]
[1642306656518,0.81735034,147.6,147.52,1.56924333]
[1642306656718,0.81735034,147.6,147.52,0.25]
[1642306657018,0.81735034,147.6,147.51,25.95472997]
[1642306657517,0.81735034,147.6,147.51,71.23157216]
[1642306657923,0.81735034,147.6,147.51,69.41754219]
[1642306659118,0.81735034,147.6,147.51,70.73678552]
[1642306659320,0.81735034,147.6,147.52,0.26]
[1642306659720,0.81735034,147.6,147.52,1.57924333]
[1642306659922,0.81735034,147.6,147.52,1.82924333]
[1642306660322,0.81735034,147.6,147.52,1.56924333]
[1642306660555,0.81735034,147.6,147.52,0.25]
[1642306660923,0.81735034,147.6,147.51,71.23157216]
[1642306661321,0.81735034,147.6,147.52,0.26]
[1642306661521,0.81735034,147.6,147.52,1.57924333]
[1642306661921,0.81735034,147.6,147.52,1.82924333]
[1642306662121,0.81735034,147.6,147.52,7.82924333]
[1642306662926,0.81735034,147.6,147.53,24.0534]
[1642306663126,0.81735034,147.6,147.54,32.38159762]
[1642306663423,0.81735034,147.6,147.54,32.63159762]
[1642306663823,0.81735034,147.6,147.54,38.63159762]
[1642306664123,0.81735034,147.6,147.54,32.63159762]
[1642306664826,0.81735034,147.6,147.54,38.63159762]
[1642306665126,0.81735034,147.6,147.54,32.63159762]
[1642306666326,0.81735034,147.6,147.55,0.26]
[1642306667829,0.81735034,147.6,147.54,32.63159762]
[1642306668468,0.81735034,147.6,147.54,0.25]
[1642306668861,0.81735034,147.6,147.53,30.3034]
[1642306669368,0.81735034,147.6,147.54,37.24598224]
[1642306669757,0.81735034,147.6,147.54,37.49598224]
[1642306672862,0.81735034,147.6,147.54,0.25]
[1642306673265,0.81735034,147.6,147.53,30.3034]
[1642306674062,0.81735034,147.6,147.53,66.19907471]
[1642306677066,23.6082,147.62,147.53,66.19907471]
[1642306677268,23.6082,147.62,147.54,0.26]
[1642306677466,23.6082,147.62,147.54,10.1]
[1642306677667,1.93006067,147.63,147.55,1.31924333]
[1642306677868,7.93006067,147.63,147.56,0.26]
[1642306678067,1.93006067,147.63,147.56,0.26]
[1642306678270,7.93006067,147.63,147.57,1.31924333]
[1642306678473,7.93006067,147.63,147.58,42.0227651]
[1642306678668,6.0,147.63,147.58,42.0227651]
[1642306678870,30.5419,147.64,147.58,42.2727651]
[1642306679073,1.93006067,147.66,147.58,49.59200843]
[1642306679672,1.93006067,147.67,147.58,49.59200843]
[1642306679871,31.93034969,147.66,147.59,24.3012]
[1642306680272,38.18034969,147.66,147.6,0.26]
[1642306680672,37.93034969,147.66,147.6,0.26]
[1642306680876,38.18034969,147.66,147.6,0.26]
[1642306681873,37.93034969,147.66,147.6,0.26]
[1642306682073,38.18034969,147.66,147.59,30.5512]
[1642306682273,38.18034969,147.66,147.6,0.26]
[1642306682473,38.18034969,147.66,147.59,30.3012]
[1642306683076,37.93034969,147.66,147.59,30.3012]
[1642306683677,37.93034969,147.66,147.59,30.5512]
[1642306683975,37.97034969,147.66,147.59,30.5512]
[1642306684375,37.97034969,147.66,147.59,30.3012]
[1642306685179,38.22034969,147.66,147.59,30.3012]
[1642306685577,37.97034969,147.66,147.59,30.5512]
[1642306685776,38.22034969,147.66,147.59,30.5512]
[1642306686981,37.97034969,147.66,147.59,30.5512]
[1642306687181,38.22034969,147.66,147.59,30.5512]
[1642306688882,37.97034969,147.66,147.6,0.26]
[1642306689382,37.97034969,147.66,147.59,30.5512]
[1642306690382,37.97034969,147.66,147.6,0.26]
[1642306694817,0.04,147.66,147.6,0.26]
[1642306695317,0.04,147.66,147.6,1.5884059]
[1642306695717,0.04,147.66,147.6,1.8384059]
[1642306696918,0.04,147.66,147.6,7.8384059]
[1642306697118,0.04,147.66,147.61,22.8528]
[1642306697318,0.04,147.66,147.61,23.1028]
[1642306702024,0.04,147.66,147.61,29.1028]
[1642306702221,0.04,147.66,147.61,23.1028]
[1642306702927,0.04,147.66,147.61,29.1028]
[1642306703123,0.04,147.66,147.61,23.1028]
[1642306704825,0.04,147.66,147.61,29.1028]
[1642306711434,0.04,147.66,147.62,0.26]
[1642306729385,0.04,147.66,147.62,68.3]
[1642306729585,0.04,147.66,147.64,68.34413151]
[1642306729785,0.04,147.66,147.65,10.1]
[1642306729987,1.93006067,147.69,147.65,82.51003011]
[1642306730189,1.93006067,147.69,147.65,88.76003011]
[1642306730386,3.854922,147.72,147.66,1.33783014]
[1642306730587,35.92638299,147.72,147.66,1.33783014]
[1642306730890,32.07146099,147.72,147.67,0.26]
[1642306731287,32.07146099,147.72,147.67,1.59783014]
[1642306731689,32.07146099,147.72,147.67,7.58783014]
[1642306731891,32.32146099,147.72,147.67,6.0]
[1642306732292,32.32146099,147.72,147.65,15.84]
[1642306732690,32.07146099,147.72,147.65,15.84]
[1642306732989,32.32146099,147.72,147.65,15.84]
[1642306734193,32.07146099,147.72,147.65,16.09]
[1642306734494,32.32146099,147.72,147.65,16.09]
[1642306735292,32.07146099,147.72,147.65,16.09]
[1642306735493,32.32146099,147.72,147.65,16.09]
[1642306735693,32.32146099,147.72,147.66,0.26]
[1642306739396,32.07146099,147.72,147.66,0.26]
[1642306739596,32.32146099,147.72,147.66,0.26]
[1642306739999,32.07146099,147.72,147.66,0.26]
[1642306740401,32.32146099,147.72,147.66,0.26]
[1642306741208,32.07146099,147.72,147.66,0.26]
[1642306741407,32.32146099,147.72,147.66,0.26]
[1642306742311,32.07146099,147.72,147.66,0.26]
[1642306742910,32.32146099,147.72,147.66,0.26]
[1642306743311,32.32146099,147.72,147.65,16.09]
[1642306743510,32.32146099,147.72,147.65,15.84]
[1642306743713,32.32146099,147.72,147.65,6.0]
[1642306743915,38.32146099,147.72,147.64,29.6539]
[1642306744313,23.0868,147.71,147.64,29.6539]
[1642306744514,23.0868,147.71,147.64,6.0]
[1642306744712,23.3368,147.71,147.64,6.0]
[1642306745011,23.3368,147.71,147.62,15.84]
[1642306745413,23.3368,147.71,147.62,16.09]
[1642306745615,29.3368,147.71,147.62,16.09]
[1642306747435,29.0868,147.71,147.62,16.09]
[1642306748840,29.3368,147.71,147.62,16.09]
[1642306752241,23.3368,147.71,147.62,16.09]
[1642306752844,29.3368,147.71,147.62,16.09]
[1642306753243,23.3368,147.71,147.62,16.09]
[1642306754544,29.3368,147.71,147.62,0.25]
[1642306754745,29.3368,147.71,147.6,0.25]
[1642306754944,29.3368,147.71,147.59,30.7807]
[1642306755545,29.3368,147.71,147.59,30.5307]
[1642306756446,39.4955,147.71,147.59,30.5307]
[1642306756847,39.4955,147.71,147.59,30.7807]
[1642306760150,107.5355,147.71,147.59,6.25]
[1642306760349,107.5355,147.71,147.59,0.25]
[1642306760551,10.1599,147.69,147.59,6.25]
[1642306760750,16.1599,147.69,147.57,25.2094]
[1642306760949,11.4700992,147.67,147.57,31.2094]
[1642306761353,17.7200992,147.67,147.58,0.26]
[1642306761653,11.4700992,147.67,147.58,0.26]
[1642306761853,11.7200992,147.67,147.58,0.26]
[1642306762751,11.4700992,147.67,147.58,0.26]
[1642306762951,11.4700992,147.67,147.58,1.61153973]
[1642306763351,11.7200992,147.67,147.58,7.86153973]
[1642306763554,11.7200992,147.67,147.58,6.51]
[1642306763751,11.4700992,147.67,147.58,6.51]
[1642306763952,11.4700992,147.67,147.58,0.51]
[1642306764153,11.4700992,147.67,147.58,6.51]
[1642306764851,11.4700992,147.67,147.58,0.51]
[1642306765053,11.4700992,147.67,147.58,1.61153973]
[1642306765253,11.4700992,147.67,147.58,7.86153973]
[1642306765577,11.7200992,147.67,147.58,6.51]
[1642306765979,11.7200992,147.67,147.58,0.25]
[1642306766178,11.7200992,147.67,147.58,6.25]
[1642306766980,11.7200992,147.67,147.58,0.25]
[1642306767178,11.7200992,147.67,147.57,31.2094]
[1642306767479,11.4700992,147.67,147.58,39.31390934]
[1642306767878,11.4700992,147.67,147.59,1.35153973]
[1642306768079,11.4700992,147.67,147.6,9.84]
[1642306768277,11.4700992,147.67,147.6,16.149]
[1642306768478,11.4700992,147.67,147.61,1.61153973]
[1642306768881,11.4700992,147.67,147.61,6.51]
[1642306769280,11.7200992,147.67,147.61,6.26]
[1642306769483,11.7200992,147.67,147.61,0.26]
[1642306769980,11.4700992,147.67,147.61,0.26]
[1642306776490,11.4700992,147.67,147.6,16.09]
[1642306776692,11.4700992,147.67,147.6,6.25]
[1642306776891,17.4700992,147.67,147.6,0.25]
[1642306777093,17.4700992,147.67,147.59,29.1872]
[1642306777490,17.4700992,147.67,147.59,75.74616295]
[1642306777693,17.4700992,147.67,147.6,0.26]
[1642306777893,24.1169,147.66,147.6,0.26]
[1642306779194,17.4700992,147.67,147.6,0.26]
[1642306781196,11.4700992,147.67,147.6,0.26]
[1642306781398,11.4700992,147.67,147.59,84.24516295]
[1642306781598,11.7200992,147.67,147.59,37.6862]
[1642306781998,11.4700992,147.67,147.59,37.6862]
[1642306782300,11.4700992,147.67,147.59,29.1872]
[1642306782699,11.4700992,147.67,147.6,49.92455376]
[1642306782902,11.4700992,147.67,147.6,56.17455376]
[1642306785202,11.4700992,147.67,147.6,64.33455376]
[1642306787910,11.4700992,147.67,147.61,0.26]
[1642306793216,11.4700992,147.67,147.6,0.25]
[1642306793414,11.7200992,147.67,147.6,6.0]
[1642306793615,11.4700992,147.67,147.6,6.0]
[1642306793817,11.4700992,147.67,147.6,6.25]
[1642306794015,11.7200992,147.67,147.6,0.25]
[1642306794817,11.7200992,147.67,147.59,29.1872]
[1642306797217,17.7200992,147.67,147.59,29.1872]
[1642306797418,23.8554,147.66,147.59,29.1872]
[1642306800347,24.1054,147.66,147.59,29.1872]
[1642306802046,23.8554,147.66,147.59,29.1872]
[1642306802852,24.1054,147.66,147.59,29.1872]
[1642306803250,23.8554,147.66,147.59,29.1872]
[1642306803454,24.1054,147.66,147.59,29.1872]
[1642306803850,23.8554,147.66,147.59,29.1872]
[1642306804252,23.8554,147.66,147.6,0.26]
[1642306804852,11.4700992,147.67,147.6,0.26]
[1642306805053,11.7200992,147.67,147.6,0.26]
[1642306807157,11.4700992,147.67,147.6,0.26]
[1642306809961,11.4700992,147.67,147.59,30.53873973]
[1642306810161,11.7200992,147.67,147.59,29.1872]
[1642306810664,11.4700992,147.67,147.59,29.1872]
[1642306811065,11.7200992,147.67,147.59,29.1872]
[1642306812167,22.8109,147.66,147.59,29.1872]
[1642306814066,22.8109,147.66,147.59,28.9372]
[1642306814267,22.8109,147.66,147.6,0.26]
[1642306814665,22.8109,147.66,147.59,28.9372]
[1642306815366,22.8109,147.66,147.59,29.1872]
[1642306821972,29.0609,147.66,147.59,29.1872]
[1642306822173,29.0609,147.66,147.59,6.25]
[1642306823074,29.0609,147.66,147.59,0.25]
[1642306823274,29.0609,147.66,147.58,16.09]
[1642306824876,23.0609,147.66,147.58,16.09]
[1642306825078,22.8109,147.66,147.58,16.09]
[1642306825278,28.8109,147.66,147.58,16.09]
[1642306830309,22.8109,147.66,147.58,16.09]
[1642306831314,22.8109,147.66,147.59,32.2792453]
[1642306831713,22.8109,147.66,147.59,38.5292453]
[1642306832011,22.8109,147.66,147.59,6.51]
[1642306833212,22.8109,147.66,147.59,0.51]
[1642306833416,22.8109,147.66,147.58,0.26]
[1642306834714,22.8109,147.66,147.58,1.61153973]
[1642306834915,22.8109,147.66,147.58,7.86153973]
[1642306837915,22.8109,147.66,147.58,6.51]
[1642306838116,22.8109,147.66,147.58,0.51]
[1642306838317,22.8109,147.66,147.58,6.51]
[1642306838515,22.8109,147.66,147.58,16.35]
[1642306839919,22.8109,147.66,147.59,3.82970018]
[1642306840318,22.8109,147.66,147.6,0.26]
[1642306841519,22.8109,147.66,147.59,6.0]
[1642306841921,22.8109,147.66,147.6,0.26]
[1642306848224,22.8109,147.66,147.58,0.26]
[1642306850626,22.8109,147.66,147.6,1.92893986]
[1642306851029,22.8109,147.66,147.6,8.17893986]
[1642306852157,22.8109,147.66,147.61,1.92893986]
[1642306852355,22.8109,147.66,147.61,8.17893986]
[1642306854360,22.8109,147.66,147.61,6.25]
[1642306855656,22.8109,147.66,147.61,0.25]
[1642306855858,22.8109,147.66,147.6,8.17893986]
[1642306868971,23.0609,147.66,147.6,8.17893986]
[1642306870070,23.0609,147.66,147.6,6.25]
[1642306870474,23.0609,147.66,147.6,0.25]
[1642306870671,23.0609,147.66,147.59,2.17893986]
[1642306870869,23.0609,147.66,147.59,8.17893986]
[1642306872070,22.8109,147.66,147.59,8.17893986]
[1642306873173,22.8109,147.66,147.6,1.92893986]
[1642306873371,23.0609,147.66,147.6,8.17893986]
[1642306876992,22.8109,147.66,147.6,8.17893986]
[1642306879417,23.0609,147.66,147.6,7.92893986]
[1642306880419,23.0609,147.66,147.6,6.0]
[1642306880621,22.8109,147.66,147.6,6.0]